Workbook

Sheet Opening Document
B2: UPON OPENING DOCUMENT…
B27: IF THE RED BANNER OCCURS….
B39: 1. DOWNLOAD DOCUMENT AND SAVE TO DESKTOP
B40: 2. RIGHT CLICK, PROPERTIES
B53: 3. MAKE SURE THERE IS A CHECK IN THE UNBLOCK BOX, CLICK APPLY, CLICK OK
B54: 4. REOPEN EXCEL WORKBOOK
B55: 5. IF NEEDED, ENABLE EDITING, ENABLE CONTENT

Sheet Budget Summary
A2: Budget Summary Worksheet - AGF Attachment A
A19: FFY 2027 Traffic Safety Grant Program for State Government Agencies
A21: Cost Categories | B21: Federal Costs | C21: Match Costs | D21: Total Costs
A24: Personnel Costs | B24: ='Budget Detail'!E17 -> 0 | C24: ='Budget Detail'!F17 -> 0 | D24: ='Budget Detail'!G17 -> 0
A26: Fringe Benefit Costs | B26: ='Budget Detail'!E27 -> 0 | C26: ='Budget Detail'!F27 -> 0 | D26: ='Budget Detail'!G27 -> 0
A28: Indirect Costs | B28: ='Budget Detail'!E37 -> 0 | C28: ='Budget Detail'!F37 -> 0 | D28: ='Budget Detail'!G37 -> 0
A30: Consultants/Contractors Costs | B30: ='Budget Detail'!E47 -> 0 | C30: ='Budget Detail'!F47 -> 0 | D30: ='Budget Detail'!G47 -> 0
A32: Equipment & Software Costs | B32: ='Budget Detail'!E57 -> 0 | C32: ='Budget Detail'!F57 -> 0 | D32: ='Budget Detail'!G57 -> 0
A34: Travel Costs | B34: ='Budget Detail'!E67 -> 0 | C34: ='Budget Detail'!F67 -> 0 | D34: ='Budget Detail'!G67 -> 0
A36: Supplies Costs | B36: ='Budget Detail'!E77 -> 0 | C36: ='Budget Detail'!F77 -> 0 | D36: ='Budget Detail'!G77 -> 0
A38: Other Costs | B38: ='Budget Detail'!E87 -> 0 | C38: ='Budget Detail'!F87 -> 0 | D38: ='Budget Detail'!G87 -> 0
A40: Total Costs | B40: ='Budget Detail'!$E$89 -> 0 | C40: ='Budget Detail'!$F$89 -> 0 | D40: ='Budget Detail'!$G$89 -> 0
A43: Enter Name of Applicant Organization
A46: Non-EOPSS Agencies Match Requirement | B46: =ROUND($D$40*0.2,2) -> 0

Sheet Budget Detail
A1: Executive Office of Public Safety and Security
A2: Office of Grants and Research
A3: FFY 2027 Traffic Safety Grant Program for State Government Agencies
A4: =CONCATENATE("Budget Detail Worksheet - AGF Attachment A",'Budget Summary'!B43) -> Budget Detail Worksheet - AGF Attachment A
A6: INSTRUCTIONS: This is a macro-enabled document. Please make sure that you read the instructions on the Opening Document tab upon opening this document to make sure that macros are enabled macros. The items marked as Example are only examples, and do not necessarily reflect items in your requested budget. Please note that the subtotals will auto-populate based on the numbers reported within each category. Your requested budget per cost category shall be entered in the rows below the Examples using the "Add" command button to add another row if needed. If you have any questions, please contact the grant manager assigned in the Availability of Grant Funds (AGF) document.
A7: Please read the Availability of Grant Funds (AGF) document. This will outline key dates, funding criteria, allowable and unallowable costs. Cost category definitions are highlighted in the Budget Guidelines tab.
A8: Applicants not under the Executive Office of Public Safety and Security must provide a minimum of 20% state or local funded cash (hard) match and/or in-kind (soft) match based on the proposed total project cost. For more information on match, please review 2 CFR Part 200.306. For example, if the total project (award + match amount) is $100,000, OGR may provide up to $80,000 via the grant award, while the subrecipient must provide at least a $20,000 via their match requirement. A related formula is (.25 x Awarded Federal Grant Funds Spent = State and/or Local Match Requirement). Match must be from state, or local (not federal) funding or resources provided by the subrecipient that directly benefit the project. Match must be an allowable expense per this AGF, incurred during the same period as the project, as well as auditable and documentable.
A10: PERSONNEL: Full or part-time regular salaried employees working on the grant. At a minimum, reporting will need to detail employee names, hours worked per pay period, and the hourly rate. Please refer to the AGF regarding Overtime Costs.
A12: Employee Name | B12: Pay Rate | C12: Quantity | D12: Description | E12: Cash Expenditures | F12: Match Expenditures | G12: Total Expenditures
A13: Example: Sue Smith | B13: 23.4875 | C13: 300 | D13: Enter activities performed by Personnel here. | E13: =IF(G13="","",G13-F13) -> 7046.25 | F13: 0 | G13: =IF(B13="","",ROUND(B13,4)*ROUND(C13,2)) -> 7046.25
E15: =IF(G15="","",G15-F15) ->  | G15: =IF(B15="","",ROUND(ROUND(B15,6)*ROUND(C15,6),2)) -> 
E16: =IF(G16="","",G16-F16) ->  | G16: =IF(B16="","",ROUND(ROUND(B16,6)*ROUND(C16,6),2)) -> 
A17: Subtotal(s): | E17: =SUM(OFFSET(Personnel,5,4):OFFSET(Fringe,-4,4)) -> 0 | F17: =SUM(OFFSET(Personnel,5,5):OFFSET(Fringe,-4,5)) -> 0 | G17: =SUM(OFFSET(Personnel,5,6):OFFSET(Fringe,-4,6)) -> 0
A20: FRINGE AND PAYROLL TAX: Eligible costs include the employer share of the following: life insurance, health insurance, Social Security costs, pension costs, unemployment insurance costs, workers compensation insurance, and payroll taxes. Cost amounts for direct fringe benefits can be either actual costs or rates per employee calculated by the fiscal or human resource unit in your organization (rate computations must be included). Must include a copy of the federally approved rate agreement in the application response.
A22: Employee Name | B22: Wages Applied to Fringe | C22: Contract Fringe Rate | D22: Description | E22: Cash Expenditures | F22: Match Expenditures | G22: Total Expenditures
A23: Example: Sue Smith | B23: 7046.25 | C23: 0.21 | D23: Per the fringe rate agreement, find the applicable cost categories to apply fringe to. In this example, the applicable cost category is "Personnel." Take Sue Smith's total wages reported on this worksheet under the "Personnel" section and multiply by the federally approved fringe rate or the fringe rate that was proposed and approved by OGR in the application process. ($7,046.25 * 21%). Match expenditures should be in relation to the match in the applicable category. | E23: =IF(G23="","",G23-F23) -> 1479.7125 | G23: =IF(B23="","",ROUND(B23,4)*ROUND(C23,4)) -> 1479.7125
E25: =IF(G25="","",G25-F25) ->  | G25: =IF(B25="","",ROUND(ROUND(B25,6)*ROUND(C25,8),2)) -> 
G26: =IF(B26="","",ROUND(ROUND(B26,6)*ROUND(C26,8),2)) -> 
A27: Subtotal(s): | E27: =SUM(OFFSET(Fringe,5,4):OFFSET(Indirect,-4,4)) -> 0 | F27: =SUM(OFFSET(Fringe,5,5):OFFSET(Indirect,-4,5)) -> 0 | G27: =SUM(OFFSET(Fringe,5,6):OFFSET(Indirect,-4,6)) -> 0
A30: INDIRECT COSTS: Applicants that want to charge indirect costs using an indirect cost rate may use a federally approved indirect cost rate agreement or charge a de minimis rate of 15%. If the applicant’s accounting system permits, indirect costs may instead be allocated in the budget, including the category “Other” if the costs being identified do not fit into one of the direct cost categories. For more information, see Title 2 CFR Part 200, in particular 200.414. Must include a copy of the federally approved rate agreement in the application response.
A32: Employee Name | B32: Expenses Applied to Indirect Rate | C32: Contract Indirect Rate | D32: Description | E32: Cash Expenditures | F32: Match Expenditures | G32: Total Expenditures
A33: Example: Sue Smith | B33: 8525.96 | C33: 0.18 | D33: The federally approved rate of "18%" times allowable expenses per contract. If allowable expenses are all categories, take the sum of all categories and multiply by the federally approved rate. If allowable expenses are only Personnel and Fringe like in this example, take the approved rate and multiply by the sum of Personnel and Fringe total costs associated with Sue Smith. (18% * (7046.25 + 1479.71)). | E33: =IF(G33="","",G33-F33) -> 1534.6728 | F33: 0 | G33: =IF(B33="","",ROUND(B33,4)*ROUND(C33,4)) -> 1534.6728
E35: =IF(G35="","",G35-F35) ->  | G35: =IF(B35="","",ROUND(ROUND(B35,6)*ROUND(C35,8),2)) -> 
G36: =IF(B36="","",ROUND(ROUND(B36,6)*ROUND(C36,8),2)) -> 
A37: Subtotal(s): | E37: =SUM(OFFSET(Indirect,5,4):OFFSET(Contractors,-4,4)) -> 0 | F37: =SUM(OFFSET(Indirect,5,5):OFFSET(Contractors,-4,5)) -> 0 | G37: =SUM(OFFSET(Indirect,5,6):OFFSET(Contractors,-4,6)) -> 0
A40: CONTRACTORS/CONSULTANTS: The maximum rate for consultants is $650 for an eight-hour day or $81.25 per hour (excluding travel and per diem costs). Any request for compensation over $650 per day or $81.25 per hour requires prior written approval by OGR. This rate is the exception, not the rule.
A42: Contractors/Consultants Name | B42: Pay Rate | C42: Quantity | D42: Description | E42: Cash Expenditures | F42: Match Expenditures | G42: Total Expenditures
A43: Example: JJ Counseling | B43: 200 | C43: 24 | D43: Enter activities performed by Contractors/Consultants here. | E43: =IF(G43="","",G43-F43) -> 2000 | F43: 2800 | G43: =IF(B43="","",ROUND(B43,4)*ROUND(C43,2)) -> 4800
E45: =IF(G45="","",G45-F45) ->  | G45: =IF(B45="","",ROUND(ROUND(B45,6)*ROUND(C45,6),2)) -> 
E46: =IF(G46="","",G46-F46) ->  | G46: =IF(B46="","",ROUND(ROUND(B46,6)*ROUND(C46,6),2)) -> 
A47: Subtotal(s): | E47: =SUM(OFFSET(Contractors,5,4):OFFSET(Equipment,-4,4)) -> 0 | F47: =SUM(OFFSET(Contractors,5,5):OFFSET(Equipment,-4,5)) -> 0 | G47: =SUM(OFFSET(Contractors,5,6):OFFSET(Equipment,-4,6)) -> 0
A50: EQUIPMENT & SOFTWARE: Equipment is any tangible, non-expendable personal property having a useful life of more than one year; cost based on classification of equipment. Must be directly related to project need/implementation. Please refer to the AGF regarding the rules behind equipment and software as well as the need for NHTSA approval if acquisition costs are $10,000 or more.
A52: Equipment | B52: Cost | C52: Quantity | D52: Description | E52: Cash Expenditures | F52: Match Expenditures | G52: Total Expenditures
A53: Example: Equipment ABC | B53: 12000 | C53: 1 | D53: Describe Equipment and purpose here. | E53: =IF(G53="","",G53-F53) -> 9500 | F53: 2500 | G53: =IF(B53="","",ROUND(B53,4)*ROUND(C53,2)) -> 12000
E55: =IF(G55="","",G55-F55) ->  | G55: =IF(B55="","",ROUND(ROUND(B55,6)*ROUND(C55,6),2)) -> 
E56: =IF(G56="","",G56-F56) ->  | G56: =IF(B56="","",ROUND(ROUND(B56,6)*ROUND(C56,6),2)) -> 
A57: Subtotal(s): | E57: =SUM(OFFSET(Equipment,5,4):OFFSET(Travel,-4,4)) -> 0 | F57: =SUM(OFFSET(Equipment,5,5):OFFSET(Travel,-4,5)) -> 0 | G57: =SUM(OFFSET(Equipment,5,6):OFFSET(Travel,-4,6)) -> 0
A60: TRAVEL: Costs that are directly related to the purpose of the grant. In-state travel costs associated with the grant shall include mileage rates, not more than $0.62 per mile, as well as the actual costs of tolls and parking. No grant funds may be spent on out-of-state conference fees, out-of-state travel, or out-of-state lodging without prior written approval from OGR. (Please refer to Pages 27-29 of the OGR General Subrecipient Grant Conditions for additional guidance surrounding travel.)
A62: Employee Name | B62: Rate | C62: Quantity | D62: Description | E62: Cash Expenditures | F62: Match Expenditures | G62: Total Expenditures
A63: Example: Sue Smith | B63: 0.62 | C63: 200 | D63: Describe Travel activities here. (Ex. Reimbursement of 200 miles driven from Boston to Springfield) | E63: =IF(G63="","",G63-F63) -> 124 | F63: 0 | G63: =IF(B63="","",ROUND(B63,4)*ROUND(C63,2)) -> 124
E65: =IF(G65="","",G65-F65) ->  | G65: =IF(B65="","",ROUND(ROUND(B65,6)*ROUND(C65,6),2)) -> 
G66: =IF(B66="","",ROUND(ROUND(B66,6)*ROUND(C66,6),2)) -> 
A67: Subtotal(s): | E67: =SUM(OFFSET(Travel,5,4):OFFSET(Supplies,-4,4)) -> 0 | F67: =SUM(OFFSET(Travel,5,5):OFFSET(Supplies,-4,5)) -> 0 | G67: =SUM(OFFSET(Travel,5,6):OFFSET(Supplies,-4,6)) -> 0
A70: SUPPLIES: Supplies required for the program (pens, pencils, postage, training materials, copying paper, and other expendable items such as books, ink, etc.).
A72: Supplies/Company | B72: Cost | C72: Quantity | D72: Description | E72: Cash Expenditures | F72: Match Expenditures | G72: Total Expenditures
A73: Example: Copy Paper | B73: 50 | C73: 4 | D73: Describe Supplies purchase here. | E73: =IF(G73="","",G73-F73) -> 100 | F73: 100 | G73: =IF(B73="","",ROUND(B73,4)*ROUND(C73,2)) -> 200
E75: =IF(G75="","",G75-F75) ->  | G75: =IF(B75="","",ROUND(ROUND(B75,6)*ROUND(C75,6),2)) -> 
G76: =IF(B76="","",ROUND(ROUND(B76,6)*ROUND(C76,6),2)) -> 
A77: Subtotal(s): | E77: =SUM(OFFSET(Supplies,5,4):OFFSET(Other,-4,4)) -> 0 | F77: =SUM(OFFSET(Supplies,5,5):OFFSET(Other,-4,5)) -> 0 | G77: =SUM(OFFSET(Supplies,5,6):OFFSET(Other,-4,6)) -> 0
A80: OTHER: Miscellaneous costs/items (e.g., telephone costs, CPS technician recertification fees) may be allowable with prior OGR approval.
A82: Item/Company | B82: Cost | C82: Quantity | D82: Description | E82: Cash Expenditures | F82: Match Expenditures | G82: Total Expenditures
A83: Example: Telephone | B83: 65 | C83: 6 | D83: Describe Other expenses here. | E83: =IF(G83="","",G83-F83) -> 390 | F83: 0 | G83: =IF(B83="","",ROUND(B83,4)*ROUND(C83,2)) -> 390
E85: =IF(G85="","",G85-F85) ->  | G85: =IF(B85="","",ROUND(ROUND(B85,6)*ROUND(C85,6),2)) -> 
E86: =IF(G86="","",G86-F86) ->  | G86: =IF(B86="","",ROUND(ROUND(B86,6)*ROUND(C86,6),2)) -> 
A87: Subtotal(s): | E87: =SUM(OFFSET(Other,5,4):OFFSET(GrandTotal,-3,4)) -> 0 | F87: =SUM(OFFSET(Other,5,5):OFFSET(GrandTotal,-3,5)) -> 0 | G87: =SUM(OFFSET(Other,5,6):OFFSET(GrandTotal,-3,6)) -> 0
A89: Grand Total(s): | E89: =ROUND(SUM(E17+E27+E37+E47+E57+E67+E77+E87),2) -> 0 | F89: =ROUND(SUM(F17+F27+F37+F47+F57+F67+F77+F87),2) -> 0 | G89: =ROUND(SUM(G17+G27+G37+G47+G57+G67+G77+G87),2) -> 0
